fUST/lending_fUST_20250930
["ID","MTS","AMOUNT","RATE_DAILY","PERIOD"]
[388444434,1759170645722,-480.0,0.00023881,2]
[388444435,1759170645731,-1009.8,0.00023881,2]
[388444436,1759170645739,-2079.41,0.00023881,2]
[388444437,1759170645749,-480.0,0.00023881,2]
[388444438,1759170645759,-734.17,0.00023881,2]
[388444439,1759170645769,-536.41,0.00023881,2]
[388444440,1759170645778,-4667.31,0.00023881,2]
[388444441,1759170645787,-480.0,0.00023881,2]
[388444442,1759170645797,-859.53,0.00023881,2]
[388444443,1759170645806,-777.92,0.00023881,2]
[388444444,1759170645816,-2410.38,0.00023881,2]
[388444445,1759170645826,-1109.97,0.00023881,2]
[388444446,1759170645836,-678.63,0.00023881,2]
[388444447,1759170645845,-1210.48,0.00023881,2]
[388444448,1759170645854,-998.64,0.00023881,2]
[388444449,1759170645863,-5665.64,0.00023881,2]
[388444450,1759170645872,-480.0,0.00023881,2]
[388444451,1759170645881,-500.0,0.00023881,2]
[388444452,1759170645890,-1381.46,0.00023881,2]
[388444453,1759170645899,-495.39,0.00023881,2]
[388444454,1759170645909,-500.0,0.00023882,2]
[388444455,1759170645918,-503.52,0.00023882,2]
[388444456,1759170645928,-480.0,0.00023882,2]
[388444457,1759170645937,-480.0,0.00023882,2]
[388444458,1759170645946,-480.0,0.00023882,2]
[388444459,1759170645956,-480.0,0.00023882,2]
[388444460,1759170645964,-610.32,0.00023882,2]
[388444461,1759170645974,-611.79429863,0.00023882,2]
[388444462,1759170645983,-480.0,0.00023882,2]
[388444463,1759170645991,-480.0,0.00023882,2]
[388444464,1759170646000,-480.0,0.00023882,2]
[388444465,1759170646010,-480.0,0.00023882,2]
[388444466,1759170646019,-618.91,0.00023882,2]
[388444467,1759170646027,-480.0,0.00023882,2]
[388444468,1759170646037,-480.0,0.00023882,2]
[388444469,1759170646046,-612.25,0.00023882,2]
[388444470,1759170646055,-480.0,0.00023882,2]
[388444471,1759170646065,-480.17,0.00023882,2]
[388444472,1759170646074,-480.0,0.00023882,2]
[388444473,1759170646084,-480.0,0.00023882,2]
[388444474,1759170646096,-480.0,0.00023882,2]
[388444475,1759170646106,-174.66757281,0.00023882,2]
[388444476,1759170646116,-572.11,0.00023882,2]
[388444477,1759170646127,-620.75,0.00023882,2]
[388444478,1759170646137,-480.0,0.00023882,2]
[388444479,1759170646146,-538.1,0.00023882,2]
[388444480,1759170646155,-490.11,0.00023882,2]
[388444481,1759170646165,-480.0,0.00023882,2]
[388444482,1759170646174,-201.94616361,0.00023882,2]
[388444483,1759170646183,-554.08,0.00023882,2]
[388444484,1759170646193,-480.0,0.00023882,2]
[388444485,1759170646202,-493.24,0.00023882,2]
[388444486,1759170646211,-480.0,0.00023882,2]
[388444487,1759170646220,-480.0,0.00023882,2]
[388444488,1759170646235,-480.0,0.00023882,2]
[388444489,1759170646244,-480.0,0.00023882,2]
[388444490,1759170646256,-480.0,0.00023882,2]
[388444491,1759170646267,-699.06,0.00023882,2]
[388444492,1759170646278,-480.0,0.00023882,2]
[388444493,1759170646288,-480.0,0.00023882,2]
[388444494,1759170646298,-480.0,0.00023882,2]
[388444495,1759170646308,-480.0,0.00023882,2]
[388444496,1759170646318,-480.0,0.00023882,2]
[388444497,1759170646328,-480.0,0.00023882,2]
[388444498,1759170646338,-480.0,0.00023882,2]
[388444499,1759170646347,-480.0,0.00023882,2]
[388444500,1759170646358,-480.0,0.00023882,2]
[388444501,1759170646369,-480.0,0.00023882,2]
[388444502,1759170646379,-480.0,0.00023882,2]
[388444503,1759170646391,-480.0,0.00023882,2]
[388444504,1759170646401,-480.0,0.00023882,2]
[388444505,1759170646411,-480.0,0.00023882,2]
[388444506,1759170646421,-480.0,0.00023882,2]
[388444507,1759170646430,-480.0,0.00023882,2]
[388444508,1759170646440,-732.39,0.00023882,2]
[388444509,1759170646450,-609.56,0.00023882,2]
[388444510,1759170646459,-480.0,0.00023882,2]
[388444511,1759170646468,-749.55,0.00023882,2]
[388444512,1759170646478,-480.0,0.00023882,2]
[388444513,1759170646487,-557.36,0.00023882,2]
[388444514,1759170646496,-480.0,0.00023882,2]
[388444515,1759170646506,-480.0,0.00023882,2]
[388444516,1759170646516,-712.62,0.00023882,2]
[388444517,1759170646525,-480.0,0.00023882,2]
[388444518,1759170646534,-480.0,0.00023882,2]
[388444519,1759170646543,-480.0,0.00023882,2]
[388444520,1759170646553,-535.93,0.00023882,2]
[388444521,1759170646562,-533.2,0.00023882,2]
[388444523,1759170646572,-480.0,0.00023882,2]
[388444524,1759170646581,-480.0,0.00023882,2]
[388444525,1759170646590,-480.0,0.00023882,2]
[388444526,1759170646599,-480.0,0.00023882,2]
[388444527,1759170646608,-480.0,0.00023882,2]
[388444528,1759170646618,-502.47,0.00023882,2]
[388444529,1759170646627,-637.31,0.00023882,2]
[388444530,1759170646637,-480.0,0.00023882,2]
[388444531,1759170646647,-480.0,0.00023882,2]
[388444532,1759170646657,-1238.18,0.00023882,2]
[388444533,1759170646667,-480.0,0.00023882,2]
[388444534,1759170646676,-511.38,0.00023882,2]
[388444535,1759170646686,-480.0,0.00023882,2]
[388444536,1759170646695,-480.0,0.00023882,2]
[388444537,1759170646706,-480.0,0.00023882,2]
[388444538,1759170646715,-480.0,0.00023882,2]
[388444539,1759170646724,-480.0,0.00023882,2]
[388444540,1759170646733,-160.7968498,0.00023882,2]
[388444541,1759170646742,-480.0,0.00023882,2]
[388444542,1759170646751,-518.1,0.00023882,2]
[388444543,1759170646760,-487.99538139,0.00023882,2]
[388444544,1759170646769,-502.59,0.00023882,2]
[388444545,1759170646778,-480.0,0.00023882,2]
[388444546,1759170646788,-480.0,0.00023882,2]
[388444547,1759170646797,-509.66,0.00023882,2]
[388444548,1759170646808,-638.83,0.00023882,2]
[388444549,1759170646817,-480.0,0.00023882,2]
[388444550,1759170646827,-522.1,0.00023882,2]
[388444551,1759170646839,-1349.23,0.00023882,2]
[388444552,1759170646850,-500.0,0.00023882,2]
[388444553,1759170646860,-480.0,0.00023882,2]
[388444554,1759170646870,-250.0,0.00023892,2]
[388444555,1759170646879,-600.0,0.00023892,20]
[388444556,1759170646889,-151.0,0.000239,10]
[388444557,1759170646899,-2351.0,0.00023941,2]
[388444558,1759170646908,-6280.1417116,0.00023947,2]
[388444559,1759170646917,-151.0,0.00023967,2]
[388444560,1759170646927,-2029.07,0.00023972,2]
[388444561,1759170646936,-480.0,0.00023972,2]
[388444562,1759170646945,-870.98,0.00023972,2]
[388444563,1759170646954,-648.92,0.00023972,2]
[388444564,1759170646963,-480.0,0.00023972,2]
[388444565,1759170646973,-671.31,0.00023972,2]
[388444566,1759170646983,-480.0,0.00023972,2]
[388444567,1759170646992,-480.0,0.00023972,2]
[388444568,1759170647001,-645.31,0.00023972,2]
[388444569,1759170647011,-480.0,0.00023972,2]
[388444570,1759170647020,-480.0,0.00023972,2]
[388444571,1759170647029,-2052.35,0.00023972,2]
[388444572,1759170647038,-480.0,0.00023972,2]
[388444573,1759170647047,-480.0,0.00023972,2]
[388444574,1759170647057,-631.57,0.00023972,2]
[388444575,1759170647066,-632.01,0.00023972,2]
[388444576,1759170647075,-524.66702181,0.00023972,2]
[388444577,1759170647084,-480.0,0.00023972,2]
[388444578,1759170647093,-573.25,0.00023972,2]
[388444579,1759170647102,-650.95,0.00023972,2]
[388444580,1759170647112,-480.0,0.00023972,2]
[388444581,1759170647123,-651.13,0.00023972,2]
[388444582,1759170647132,-563.22,0.00023972,2]
[388444583,1759170647144,-480.0,0.00023972,2]
[388444584,1759170647153,-480.0,0.00023972,2]
[388444585,1759170647162,-606.87,0.00023972,2]
[388444586,1759170647171,-1182.09,0.00023972,2]
[388444587,1759170647180,-2116.71,0.00023972,2]
[388444588,1759170647189,-480.0,0.00023972,2]
[388444589,1759170647199,-560.44,0.00023972,2]
[388444590,1759170647210,-542.61,0.00023972,2]
[388444591,1759170647220,-480.0,0.00023972,2]
[388444592,1759170647238,-480.0,0.00023972,2]
[388444593,1759170647248,-740.55,0.00023972,2]
[388444594,1759170647259,-1818.73,0.00023972,2]
[388444595,1759170647267,-533.64,0.00023972,2]
[388444596,1759170647277,-710.39,0.00023972,2]
[388444597,1759170647286,-480.0,0.00023972,2]
[388444598,1759170647295,-480.0,0.00023972,2]
[388444599,1759170647305,-160.0,0.00023976,4]
[388444600,1759170647314,-800.0,0.00023977,2]
[388444601,1759170647324,-480.0,0.0002398,2]
[388444602,1759170647334,-480.0,0.0002398,2]
[388444603,1759170647343,-480.0,0.0002398,2]
[388444604,1759170647352,-480.0,0.00023981,2]
[388444605,1759170647362,-480.0,0.00023981,2]
[388444606,1759170647372,-480.0,0.00023981,2]
[388444607,1759170647381,-1015.15,0.00023981,2]
[388444608,1759170647390,-480.0,0.00023981,2]
[388444609,1759170647400,-480.0,0.00023981,2]
[388444610,1759170647409,-480.0,0.00023981,2]
[388444611,1759170647419,-480.0,0.00023981,2]
[388444612,1759170647429,-480.0,0.00023981,2]
[388444613,1759170647438,-532.68,0.00023981,2]
[388444614,1759170647448,-480.0,0.00023981,2]
[388444615,1759170647457,-480.0,0.00023981,2]
[388444616,1759170647467,-480.0,0.00023981,2]
[388444617,1759170647476,-551.38,0.00023981,2]
[388444618,1759170647486,-480.0,0.00023981,2]
[388444619,1759170647496,-480.0,0.00023981,2]
[388444620,1759170647505,-480.0,0.00023981,2]
[388444621,1759170647515,-480.0,0.00023981,2]
[388444622,1759170647524,-533.82,0.00023981,2]
[388444623,1759170647533,-480.0,0.00023981,2]
[388444624,1759170647542,-480.0,0.00023981,2]
[388444625,1759170647553,-480.0,0.00023981,2]
[388444626,1759170647562,-480.0,0.00023981,2]
[388444627,1759170647572,-480.0,0.00023981,2]
[388444628,1759170647582,-884.71,0.00023981,2]
[388444629,1759170647592,-480.0,0.00023981,2]
[388444630,1759170647602,-480.0,0.00023981,2]
[388444631,1759170647611,-480.0,0.00023981,2]
[388444632,1759170647620,-539.37,0.00023981,2]
[388444633,1759170647629,-542.63,0.00023981,2]
[388444634,1759170647639,-480.0,0.00023981,2]
[388444635,1759170647649,-480.0,0.00023981,2]
[388444636,1759170647659,-480.0,0.00023981,2]
[388444637,1759170647668,-536.18,0.00023981,2]
[388444638,1759170647677,-480.0,0.00023981,2]
[388444639,1759170647686,-480.0,0.00023981,2]
[388444640,1759170647695,-480.0,0.00023981,2]
[388444641,1759170647705,-800.0,0.00023984,2]
[388444642,1759170647714,-4340.3587398,0.00024,2]
[388444643,1759170647723,-151.0,0.00024,10]
[388444644,1759170647733,-480.0,0.0002402,2]
[388444645,1759170647743,-480.0,0.0002402,2]
[388444646,1759170647753,-578.22,0.0002402,2]
[388444647,1759170647762,-480.0,0.0002402,2]
[388444648,1759170647772,-480.0,0.0002402,2]
[388444649,1759170647782,-480.0,0.0002402,2]
[388444650,1759170647793,-800.0,0.0002402,2]
[388444651,1759170647803,-578.408847,0.00024021,2]
[388444652,1759170647811,-1105.27830802,0.00024021,2]
[388444653,1759170647820,-500.0,0.00024021,2]
[388444654,1759170647830,-1000.0,0.00024021,2]
[388444655,1759170647840,-800.0,0.00024035,2]
[388444656,1759170647849,-800.0,0.00024039,2]
[388444657,1759170647860,-479.94765416,0.00024043,2]
[388444658,1759170647871,-480.0,0.00024044,2]
[388444659,1759170647880,-176.55544409,0.00024045,2]
[388444660,1759170647889,-800.0,0.00024046,2]
[388444661,1759170647899,-500.0,0.00024047,2]
[388444662,1759170647910,-164.88740301,0.00024047,2]
[388444663,1759170647919,-151.0,0.00024047,2]
[388444664,1759170647929,-500.0,0.00024047,2]
[388444665,1759170647939,-151.0,0.00024047,2]
[388444666,1759170647947,-151.0,0.00024047,2]
[388444667,1759170647956,-151.0,0.00024047,2]
[388444668,1759170647966,-151.0,0.00024047,2]
[388444669,1759170647976,-500.0,0.00024047,2]
[388444670,1759170647985,-500.0,0.00024047,2]
[388444671,1759170647995,-151.0,0.00024047,2]
[388444672,1759170648006,-151.0,0.00024047,2]
[388444673,1759170648015,-151.0,0.00024047,2]
[388444674,1759170648024,-151.0,0.00024047,2]
[388444675,1759170648033,-500.0,0.00024047,2]
[388444676,1759170648042,-151.0,0.00024047,2]
[388444677,1759170648051,-151.0,0.00024047,2]
[388444678,1759170648061,-151.0,0.00024047,2]
[388444679,1759170648070,-500.0,0.00024047,2]
[388444680,1759170648080,-151.0,0.00024047,2]
[388444681,1759170648089,-500.0,0.00024047,2]
[388444682,1759170648235,-151.0,0.00024047,2]
[388444683,1759170648265,-151.0,0.00024047,2]
[388444684,1759170648274,-151.0,0.00024047,2]
[388444685,1759170648284,-151.0,0.00024047,2]
[388444686,1759170648293,-151.0,0.00024047,2]
[388444687,1759170648302,-1440.0,0.00024047,2]
[388444688,1759170648310,-151.0,0.00024047,2]
[388444689,1759170648320,-500.0,0.00024047,2]
[388444690,1759170648330,-500.0,0.00024047,2]
[388444691,1759170648339,-500.0,0.00024047,2]
[388444692,1759170648348,-152.46363671,0.00024047,2]
[388444693,1759170648357,-225.94003019,0.00024047,2]
[388444694,1759170648366,-500.0,0.00024047,2]
[388444695,1759170648375,-500.0,0.00024047,2]
[388444696,1759170648384,-800.0,0.00024055,2]
[388444697,1759170648393,-800.0,0.00024058,2]
[388444698,1759170648402,-800.0,0.00024075,2]
[388444700,1759170648411,-800.0,0.00024076,2]
[388444702,1759170648419,-1121.69244956,0.00024084,2]
[388444704,1759170648428,-800.0,0.0002409,2]
[388444706,1759170648437,-800.0,0.00024092,2]
[388444707,1759170648446,-151.0,0.000241,6]
[388444708,1759170648456,-800.0,0.00024105,2]
[388444709,1759170648466,-800.0,0.00024107,2]
[388444710,1759170648475,-200.0,0.00024109,2]
[388444711,1759170648485,-200.0,0.00024109,2]
[388444712,1759170648495,-200.0,0.00024109,2]
[388444713,1759170648504,-800.0,0.0002411,2]
[388444715,1759170648514,-800.0,0.00024127,2]
[388444717,1759170648523,-800.0,0.00024143,2]
[388444719,1759170648532,-578.35,0.00024144,2]
[388444721,1759170648541,-956.03,0.00024144,2]
[388444723,1759170648551,-480.0,0.00024145,2]
[388444725,1759170648560,-480.0,0.00024145,2]
[388444727,1759170648569,-480.0,0.00024145,2]
[388444729,1759170648578,-533.2,0.00024145,2]
[388444730,1759170648587,-2716.24,0.00024145,2]
[388444732,1759170648596,-884.65,0.00024145,2]
[388444734,1759170648605,-480.0,0.00024145,2]
[388444735,1759170648615,-480.0,0.00024145,2]
[388444737,1759170648624,-997.87,0.00024145,2]
[388444739,1759170648633,-2140.74,0.00024145,2]
[388444741,1759170648642,-1103.28,0.00024145,2]
[388444743,1759170648651,-496.71,0.00024145,2]
[388444745,1759170648660,-480.0,0.00024145,2]
[388444747,1759170648669,-1831.44,0.00024145,2]
[388444749,1759170648677,-558.08,0.00024145,2]
[388444751,1759170648687,-480.0,0.00024145,2]
[388444752,1759170648696,-1452.82,0.00024145,2]
[388444754,1759170648705,-2048.15,0.00024145,2]
[388444756,1759170648714,-533.84,0.00024145,2]
[388444758,1759170648725,-674.9,0.00024145,2]
[388444760,1759170648734,-764.91,0.00024145,2]
[388444762,1759170648743,-480.0,0.00024145,2]
[388444764,1759170648752,-1444.05,0.00024145,2]
[388444766,1759170648761,-1365.72,0.00024145,2]
[388444767,1759170648769,-480.0,0.00024145,2]
[388444769,1759170648778,-1465.03,0.00024145,2]
[388444771,1759170648787,-480.0,0.00024145,2]
[388444773,1759170648796,-624.86,0.00024145,2]
[388444775,1759170648805,-480.0,0.00024145,2]
[388444777,1759170648815,-596.41,0.00024145,2]
[388444779,1759170648823,-512.95,0.00024145,2]
[388444781,1759170648832,-151.0,0.00024145,7]
[388444783,1759170648841,-8863.73,0.00024145,2]
[388444784,1759170648849,-151.0,0.00024145,7]
[388444786,1759170648859,-151.0,0.00024145,7]
[388444788,1759170648868,-908.62,0.00024145,2]
[388444790,1759170648877,-151.0,0.00024145,7]
[388444791,1759170648886,-151.0,0.00024145,7]
[388444793,1759170648895,-800.0,0.00024147,2]
[388444794,1759170648905,-554.92,0.00024154,2]
[388444795,1759170648914,-480.0,0.00024154,2]
[388444796,1759170648923,-613.85,0.00024154,2]
[388444797,1759170648932,-480.0,0.00024154,2]
[388444798,1759170648942,-480.0,0.00024154,2]
[388444799,1759170648951,-582.0,0.00024154,2]
[388444800,1759170648961,-661.09,0.00024154,2]
[388444801,1759170648971,-961.47,0.00024154,2]
[388444802,1759170648980,-480.0,0.00024154,2]
[388444803,1759170648989,-2113.43,0.00024154,2]
[388444804,1759170648998,-3389.53,0.00024154,2]
[388444805,1759170649007,-554.47404086,0.00024154,2]
[388444806,1759170649018,-480.0,0.00024154,2]
[388444807,1759170649027,-480.0,0.00024154,2]
[388444808,1759170649037,-1340.4,0.00024154,2]
[388444809,1759170649046,-3640.7,0.00024154,2]
[388444810,1759170649059,-900.08,0.00024154,2]
[388444811,1759170649069,-480.0,0.00024154,2]
[388444812,1759170649078,-480.0,0.00024154,2]
[388444813,1759170649087,-480.0,0.00024155,2]
[388444814,1759170649097,-480.0,0.00024155,2]
[388444815,1759170649106,-480.0,0.00024155,2]
[388444816,1759170649115,-480.0,0.00024155,2]
[388444817,1759170649125,-532.67,0.00024155,2]
[388444818,1759170649134,-480.0,0.00024155,2]
[388444819,1759170649144,-1188.17,0.00024155,2]
[388444820,1759170649153,-480.0,0.00024155,2]
[388444821,1759170649162,-480.0,0.00024155,2]
[388444822,1759170649171,-505.31,0.00024155,2]
[388444823,1759170649180,-480.0,0.00024155,2]
[388444824,1759170649190,-590.97,0.00024155,2]
[388444825,1759170649200,-625.5,0.00024155,2]
[388444826,1759170649210,-480.0,0.00024155,2]
[388444827,1759170649219,-480.0,0.00024155,2]
[388444828,1759170649232,-956.38,0.00024155,2]
[388444829,1759170649242,-1361.9,0.00024155,2]
[388444830,1759170649251,-502.54,0.00024155,2]
[388444831,1759170649261,-948.18,0.00024155,2]
[388444832,1759170649272,-480.0,0.00024155,2]
[388444833,1759170649281,-714.76,0.00024155,2]
[388444834,1759170649290,-480.0,0.00024155,2]
[388444835,1759170649300,-480.0,0.00024155,2]
[388444836,1759170649311,-1220.05,0.00024155,2]
[388444837,1759170649321,-480.0,0.00024155,2]
[388444838,1759170649331,-480.0,0.00024155,2]
[388444839,1759170649340,-581.46,0.00024155,2]
[388444840,1759170649350,-534.26,0.00024155,2]
[388444841,1759170649359,-889.34,0.00024155,2]
[388444842,1759170649369,-538.94,0.00024155,2]
[388444843,1759170649379,-480.0,0.00024155,2]
[388444844,1759170649388,-695.64,0.00024155,2]
[388444845,1759170649397,-480.0,0.00024155,2]
[388444846,1759170649407,-480.0,0.00024155,2]
[388444847,1759170649416,-679.51,0.00024155,2]
[388444848,1759170649425,-517.26,0.00024155,2]
[388444849,1759170649434,-760.83,0.00024155,2]
[388444850,1759170649443,-884.16,0.00024155,2]
[388444851,1759170649452,-656.04,0.00024155,2]
[388444852,1759170649462,-793.21,0.00024155,2]
[388444853,1759170649471,-480.0,0.00024155,2]
[388444854,1759170649480,-516.03,0.00024155,2]
[388444855,1759170649490,-480.0,0.00024155,2]
[388444856,1759170649500,-505.75,0.00024155,2]
[388444857,1759170649509,-253.4705883,0.00024155,2]
[388444858,1759170649518,-480.0,0.00024155,2]
[388444859,1759170649528,-756.7,0.00024155,2]
[388444860,1759170649537,-761.12,0.00024155,2]
[388444861,1759170649547,-2938.62,0.00024155,2]
[388444862,1759170649557,-197.85942844,0.00024155,2]
[388444863,1759170649566,-1143.11,0.00024155,2]
[388444864,1759170649576,-2029.24,0.00024155,2]
[388444865,1759170649585,-480.0,0.00024155,2]
[388444866,1759170649595,-1705.31,0.00024155,2]
[388444867,1759170649604,-565.96,0.00024155,2]
[388444868,1759170649613,-480.0,0.00024155,2]
[388444869,1759170649622,-480.0,0.00024155,2]
[388444870,1759170649632,-1159.34,0.00024155,2]
[388444871,1759170649641,-480.0,0.00024155,2]
[388444872,1759170649651,-584.53,0.00024155,2]
[388444873,1759170649660,-1223.63,0.00024155,2]
[388444874,1759170649669,-586.91,0.00024155,2]
[388444875,1759170649679,-1123.58,0.00024155,2]
[388444876,1759170649688,-480.0,0.00024155,2]
[388444877,1759170649697,-1940.61,0.00024155,2]
[388444878,1759170649707,-4748.24,0.00024155,2]
[388444879,1759170649716,-574.2,0.00024155,2]
[388444880,1759170649726,-683.21,0.00024155,2]
[388444881,1759170649735,-2049.25,0.00024155,2]
[388444882,1759170649745,-675.95,0.00024155,2]
[388444883,1759170649754,-759.88,0.00024155,2]
[388444884,1759170649763,-480.0,0.00024155,2]
[388444885,1759170649773,-151.0,0.00024155,7]
[388444886,1759170649782,-151.0,0.00024155,7]
[388444887,1759170649791,-151.0,0.00024155,7]
[388444888,1759170649800,-1009.8,0.00024155,2]
[388444889,1759170649811,-2079.41,0.00024155,2]
[388444890,1759170649820,-480.0,0.00024155,2]
[388444891,1759170649830,-734.17,0.00024155,2]
[388444892,1759170649839,-536.41,0.00024155,2]
[388444893,1759170649849,-151.0,0.00024155,7]
[388444894,1759170649859,-151.0,0.00024155,7]
[388444895,1759170649868,-4667.31,0.00024155,2]
[388444896,1759170649876,-151.0,0.00024155,7]
[388444897,1759170649886,-151.0,0.00024155,7]
[388444898,1759170649895,-151.0,0.00024155,7]
[388444899,1759170649903,-151.0,0.00024155,7]
[388444900,1759170649912,-151.0,0.00024155,7]
[388444901,1759170649921,-480.0,0.00024155,2]
[388444902,1759170649930,-859.53,0.00024155,2]
[388444903,1759170649939,-151.0,0.00024155,7]
[388444904,1759170649948,-151.0,0.00024155,7]
[388444905,1759170649957,-777.92,0.00024155,2]
[388444906,1759170649966,-177.530435,0.00024155,7]
[388444907,1759170649975,-2264.347528,0.00024155,7]
[388444908,1759170649984,-2264.347528,0.00024155,7]
[388444909,1759170649993,-151.0,0.00024155,7]
[388444910,1759170650001,-2264.347528,0.00024155,7]
[388444911,1759170650010,-151.0,0.00024155,7]
[388444912,1759170650018,-2410.38,0.00024155,2]
[388444913,1759170650027,-2264.347528,0.00024155,7]
[388444914,1759170650036,-369.361182,0.00024155,7]
[388444915,1759170650045,-1109.97,0.00024155,2]
[388444916,1759170650054,-369.361182,0.00024155,7]
[388444917,1759170650064,-369.361182,0.00024155,7]
[388444918,1759170650072,-151.0,0.00024155,7]
[388444919,1759170650081,-369.361182,0.00024155,7]
[388444920,1759170650090,-151.0,0.00024155,7]
[388444921,1759170650099,-151.0,0.00024155,7]
[388444922,1759170650108,-678.63,0.00024155,2]
[388444923,1759170650117,-151.0,0.00024155,7]
[388444924,1759170650126,-151.0,0.00024155,7]
[388444925,1759170650135,-151.0,0.00024155,7]
[388444926,1759170650143,-152.79694186,0.00024155,7]
[388444927,1759170650152,-998.64,0.00024155,2]
[388444928,1759170650161,-5665.64,0.00024155,2]
[388444929,1759170650170,-480.0,0.00024155,2]
[388444930,1759170650179,-500.0,0.00024155,2]
[388444931,1759170650188,-1381.46,0.00024155,2]
[388444932,1759170650196,-495.39,0.00024155,2]
[388444933,1759170650206,-500.0,0.00024156,2]
[388444934,1759170650215,-503.52,0.00024156,2]
[388444935,1759170650226,-480.0,0.00024156,2]
[388444936,1759170650235,-480.0,0.00024156,2]
[388444937,1759170650244,-480.0,0.00024156,2]
[388444938,1759170650254,-480.0,0.00024156,2]
[388444939,1759170650263,-610.32,0.00024156,2]
[388444940,1759170650271,-480.0,0.00024156,2]
[388444941,1759170650280,-480.0,0.00024156,2]
[388444942,1759170650289,-480.0,0.00024156,2]
[388444943,1759170650299,-480.0,0.00024156,2]
[388444944,1759170650309,-618.91,0.00024156,2]
[388444945,1759170650318,-582.34207422,0.00024156,2]
[388444946,1759170650327,-480.0,0.00024156,2]
[388444947,1759170650336,-612.25,0.00024156,2]
[388444948,1759170650346,-480.0,0.00024156,2]
[388444949,1759170650357,-480.17,0.00024156,2]
[388444950,1759170650366,-480.0,0.00024156,2]
[388444951,1759170650375,-480.0,0.00024156,2]
[388444952,1759170650384,-572.11,0.00024156,2]
[388444953,1759170650393,-620.75,0.00024156,2]
[388444954,1759170650401,-480.0,0.00024156,2]
[388444955,1759170650411,-538.1,0.00024156,2]
[388444956,1759170650420,-490.11,0.00024156,2]
[388444957,1759170650429,-554.08,0.00024156,2]
[388444958,1759170650438,-480.0,0.00024156,2]
[388444959,1759170650447,-493.24,0.00024156,2]
[388444960,1759170650457,-262.110353,0.00024156,2]
[388444961,1759170650466,-480.0,0.00024156,2]
[388444962,1759170650474,-480.0,0.00024156,2]
[388444963,1759170650484,-480.0,0.00024156,2]
[388444964,1759170650492,-699.06,0.00024156,2]
[388444965,1759170650502,-480.0,0.00024156,2]
[388444966,1759170650511,-390.36504312,0.00024156,2]
[388444967,1759170650520,-480.0,0.00024156,2]
[388444968,1759170650529,-480.0,0.00024156,2]
[388444969,1759170650538,-480.0,0.00024156,2]
[388444970,1759170650546,-480.0,0.00024156,2]
[388444971,1759170650555,-480.0,0.00024156,2]
[388444972,1759170650564,-480.0,0.00024156,2]
[388444973,1759170650573,-480.0,0.00024156,2]
[388444974,1759170650582,-480.0,0.00024156,2]
[388444975,1759170650590,-151.0,0.00024156,7]